bitfinex/quotes_ETHUSD_20240824
["timestamp","ask_amount","ask_price","bid_price","bid_amount"]
[1724529374461,5.44851658,2798.6,2798.1,1.685668]
[1724529376009,3.57336,2798.5,2798.0,1.54221364]
[1724529376294,5.44859658,2798.5,2798.0,1.54221364]
[1724529376797,1.87523658,2798.5,2798.0,1.54221364]
[1724529376970,1.87523658,2798.5,2798.1,0.89454896]
[1724529377304,3.57328,2798.6,2798.2,0.89454896]
[1724529377506,3.57328,2798.6,2798.3,0.89454896]
[1724529377712,7.14658,2798.6,2798.1,1.1181382]
[1724529377854,3.57328,2798.6,2798.2,0.89452002]
[1724529378055,3.57328,2798.6,2798.3,0.89452002]
[1724529378286,3.57328,2798.6,2798.1,1.1181501]
[1724529378503,3.57328,2798.6,2798.0,5.11618364]
[1724529378504,3.57328,2798.6,2798.2,0.89453439]
[1724529378705,3.57328,2798.6,2798.3,0.89453439]
[1724529378856,3.57328,2798.6,2798.0,5.11618364]
[1724529379057,3.57328,2798.6,2798.1,2.37705136]
[1724529379257,3.57328,2798.6,2798.2,0.894543]
[1724529379576,3.57328,2798.6,2798.3,0.894543]
[1724529379789,3.57328,2798.6,2798.0,5.11618364]
[1724529380097,3.57328,2798.6,2798.1,0.89454494]
[1724529380397,3.57328,2798.6,2798.2,0.89454494]
[1724529380598,3.57328,2798.6,2798.0,5.11618364]
[1724529380757,3.57328,2798.6,2798.0,6.27863104]
[1724529381271,3.57328,2798.6,2798.0,9.85254104]
[1724529381806,3.57328,2798.6,2798.0,6.27857104]
[1724529382158,3.57328,2798.6,2798.0,9.85247104]
[1724529382475,3.57328,2798.6,2798.1,3.57384]
[1724529382787,3.57328,2798.6,2798.1,4.7989701]
[1724529382990,1.87652495,2798.5,2798.1,4.7989701]
[1724529384214,3.57328,2798.6,2798.1,4.7989701]
[1724529384764,3.57328,2798.6,2798.1,1.2251301]
[1724529385397,3.57328,2798.6,2798.1,4.7989701]
[1724529385806,3.57328,2798.6,2798.1,1.2251301]
[1724529387278,3.57328,2798.6,2798.1,4.7989501]
[1724529388024,1.8765823,2798.5,2798.1,4.7989501]
[1724529389818,1.87656285,2798.5,2798.1,4.7989501]
[1724529390581,1.87656285,2798.5,2798.2,3.57372]
[1724529394488,1.87656945,2798.5,2798.2,3.57372]
[1724529395714,1.87656945,2798.5,2798.1,1.2251301]
[1724529395956,1.87656945,2798.5,2798.1,4.7988801]
[1724529397443,1.87656945,2798.5,2798.1,1.2251301]
[1724529398050,1.87656945,2798.5,2798.0,8.68998364]
[1724529398757,1.87656945,2798.5,2798.1,3.57381]
[1724529399133,1.87656945,2798.5,2798.0,8.68997364]
[1724529399336,1.87656945,2798.5,2798.0,5.11608364]
[1724529400057,1.87656945,2798.4,2798.0,5.11608364]
[1724529400257,1.87656945,2798.4,2798.0,6.27848401]
[1724529400464,1.87656945,2798.4,2798.0,9.85238401]
[1724529401040,4.19496945,2798.4,2798.0,9.85238401]
[1724529401697,2.3184,2798.4,2798.0,9.85238401]
[1724529402315,1.87656945,2798.5,2798.1,3.57385]
[1724529404264,1.87656945,2798.5,2798.0,6.27848401]
[1724529404869,1.87656945,2798.5,2798.0,9.85239401]
[1724529405102,1.87656945,2798.5,2798.0,8.31018037]
[1724529405309,1.87656945,2798.5,2798.1,6.34117304]
[1724529407752,1.87656945,2798.5,2798.2,3.57369]
[1724529408544,1.8763779,2798.5,2798.2,3.57369]
[1724529409143,1.8763779,2798.6,2798.2,3.57369]
[1724529409440,1.8763779,2798.5,2798.2,3.57369]
[1724529409644,1.8763779,2798.5,2798.3,0.6341033]
[1724529410050,1.8763779,2798.5,2798.3,5.74990694]
[1724529410203,1.8763779,2798.6,2798.3,5.74990694]
[1724529411551,1.87658958,2798.6,2798.3,5.74990694]
[1724529411906,1.87658958,2798.6,2798.3,0.6341033]
[1724529412217,1.87658958,2798.6,2798.2,3.57364]
[1724529412745,1.87658958,2798.6,2798.2,7.14727]
[1724529413247,1.87674233,2798.6,2798.2,7.14727]
[1724529413645,1.8769051,2798.6,2798.2,3.57363]
[1724529413850,1.8769051,2798.5,2798.2,3.57363]
[1724529414147,1.8769051,2798.5,2798.2,4.7970893]
[1724529414852,1.87710743,2798.5,2798.2,4.7970893]
[1724529415348,4.29720743,2798.5,2798.2,3.57363]
[1724529415551,1.87710743,2798.5,2798.2,3.57363]
[1724529416205,1.87710743,2798.4,2798.2,3.57363]
[1724529418063,5.99319,2798.7,2798.2,3.57363]
[1724529418223,1.87752789,2798.4,2798.2,3.57363]
[1724529418425,1.87752789,2798.4,2798.2,4.67457636]
[1724529419273,1.87752789,2798.4,2798.2,1.10094636]
[1724529419419,1.87752789,2798.3,2798.2,1.10094636]
[1724529419620,1.87752789,2798.3,2798.1,5.11603364]
[1724529419816,1.87752789,2798.3,2798.1,1.54221364]
[1724529420016,1.87752789,2798.3,2797.9,21.24221364]
[1724529420438,1.87752789,2798.3,2797.9,24.81624364]
[1724529420661,1.87752789,2798.3,2798.0,6.28756436]
[1724529420837,1.87752789,2798.3,2798.1,0.33447204]
[1724529421017,1.87752789,2798.3,2798.0,6.28756436]
[1724529421777,1.87759498,2798.4,2798.1,4.7142068]
[1724529422869,1.87759498,2798.4,2798.1,1.1403568]
[1724529423869,1.87759498,2798.4,2798.2,0.5590865]
[1724529424110,1.87759498,2798.4,2798.3,0.5590865]
[1724529426008,1.87759498,2798.4,2798.0,3.57388]
[1724529426191,1.87759498,2798.4,2798.3,0.55909703]
[1724529429520,1.87759498,2798.4,2798.1,3.57383]
[1724529429684,1.87759498,2798.4,2798.1,4.44282236]
[1724529429883,1.87759498,2798.4,2798.2,0.55908376]
[1724529430113,1.87759498,2798.4,2798.2,0.55908214]
[1724529430636,1.87759498,2798.4,2798.3,0.55908214]
[1724529435308,1.87756469,2798.4,2798.3,0.55908214]
[1724529435905,1.87756753,2798.4,2798.3,0.55908214]
[1724529436195,1.87756753,2798.4,2798.1,3.57383]
[1724529436394,1.87756753,2798.4,2798.3,0.55909202]
[1724529438350,1.87757904,2798.4,2798.3,0.55909202]
[1724529439748,1.87757904,2798.4,2798.1,3.5738]
[1724529439928,1.87757904,2798.4,2798.3,0.55908362]
[1724529440759,1.87755015,2798.4,2798.3,0.55908362]
[1724529441655,2.4201,2798.6,2798.3,0.55908362]
[1724529441864,1.87752715,2798.4,2798.1,3.5738]
[1724529442049,1.87752715,2798.4,2798.2,1.67723794]
[1724529442362,1.87752715,2798.4,2798.3,0.55907931]
[1724529442726,1.87752715,2798.4,2798.3,0.55907989]
[1724529443566,1.87752715,2798.5,2798.4,3.57347]
[1724529443747,1.87752715,2798.6,2798.5,3.57334]
[1724529445521,1.87718898,2798.6,2798.5,3.57334]
[1724529446165,1.87718898,2798.6,2798.4,2.2502]
[1724529446328,1.87718898,2798.6,2798.3,5.11571364]
[1724529446550,1.87714032,2798.6,2798.3,5.11571364]
[1724529446752,1.87714032,2798.6,2798.3,3.5735]
[1724529447361,1.87714032,2798.5,2798.3,3.5735]
[1724529447762,1.87714032,2798.6,2798.3,3.5735]
[1724529450199,6.05422,2798.7,2798.0,5.82417]
[1724529450381,1.87719015,2798.5,2798.1,1.45272367]
[1724529450556,1.87719015,2798.5,2798.0,5.82417]
[1724529450752,4.35829015,2798.4,2798.1,1.11815936]
[1724529451063,1.87719015,2798.3,2797.9,5.11628364]
[1724529451262,2.4811,2798.4,2798.0,1.45287952]
[1724529451263,4.35829015,2798.4,2798.0,1.45287952]
[1724529451472,4.35829015,2798.4,2797.9,5.11628364]
[1724529451796,1.87719015,2798.3,2798.0,1.45287856]
[1724529452002,4.35829015,2798.4,2797.9,5.11628364]
[1724529452152,4.35829015,2798.4,2798.0,1.4528897]
[1724529452352,4.35829015,2798.4,2797.9,7.955344]
[1724529452553,4.35829015,2798.4,2798.0,1.45288999]
[1724529452856,1.87719015,2798.3,2797.9,6.41313036]
[1724529453055,4.35829015,2798.4,2798.0,1.45292373]
[1724529453409,4.35829015,2798.4,2797.9,7.955344]
[1724529453559,4.35832672,2798.4,2798.0,2.24839434]
[1724529453759,4.35832672,2798.4,2797.9,7.955294]
[1724529454100,4.35832672,2798.4,2798.0,1.45284881]
[1724529454304,4.35832672,2798.4,2797.9,11.529314]
[1724529454634,4.35832672,2798.4,2798.0,5.02675112]
[1724529454846,4.35832672,2798.4,2798.0,3.57394]
[1724529455140,4.35827969,2798.4,2798.0,3.57394]
[1724529458227,4.35827969,2798.4,2798.0,3.57389]
[1724529459730,4.35838817,2798.4,2798.0,3.57389]
[1724529461132,4.35838817,2798.4,2798.0,7.14779]
[1724529461133,4.35837327,2798.4,2798.0,7.14779]
[1724529461347,1.87727327,2798.3,2798.0,3.57388]
[1724529461686,1.87727327,2798.3,2798.1,3.57384]
[1724529462008,4.35837327,2798.4,2798.1,3.57384]
[1724529462214,1.87727327,2798.4,2798.1,3.57384]
[1724529462731,1.87727327,2798.4,2798.0,7.14779]
[1724529462906,1.87727327,2798.4,2798.0,3.57388]
[1724529463111,1.87727327,2798.4,2798.0,7.14778]
[1724529464000,1.87727327,2798.4,2798.0,3.57388]
[1724529464339,1.87722861,2798.4,2798.0,7.14777]
[1724529464536,1.87722861,2798.4,2798.0,3.57388]
[1724529465448,1.87722861,2798.4,2798.0,7.14777]
[1724529466229,1.87722861,2798.4,2798.0,3.57388]
[1724529466423,1.87722861,2798.4,2798.0,7.14778]
[1724529466623,1.87722861,2798.3,2798.0,3.57388]
[1724529467155,1.87722861,2798.3,2798.0,7.14777]
[1724529467662,1.87722861,2798.4,2798.0,3.57388]
[1724529467815,1.87722861,2798.4,2798.0,7.14775]
[1724529468008,1.87722861,2798.3,2798.0,7.14775]
[1724529468237,1.87722861,2798.3,2798.0,3.57387]
[1724529468441,1.87722861,2798.4,2798.0,3.57387]
[1724529468641,1.87722861,2798.4,2798.0,7.14777]
[1724529468912,1.87722861,2798.4,2798.0,3.57387]
[1724529472861,1.87722861,2798.4,2798.1,3.57383]
[1724529474168,1.87705809,2798.4,2798.1,3.57383]
[1724529478940,1.8770222,2798.4,2798.1,3.57383]
[1724529481763,1.8770222,2798.4,2798.1,7.14766]
[1724529482078,1.8770222,2798.4,2798.1,4.537556]
[1724529482272,1.87697904,2798.4,2798.1,4.537556]
[1724529484759,1.87697904,2798.4,2798.1,3.57383]
[1724529485900,1.87697904,2798.4,2798.3,3.57359]
[1724529486278,1.87697904,2798.5,2798.3,3.57359]
[1724529486963,1.87690805,2798.5,2798.3,3.57359]
[1724529491402,1.87690805,2798.4,2798.3,3.57359]
[1724529491593,1.87690805,2798.5,2798.3,3.57359]
[1724529491791,1.87716902,2798.5,2798.1,3.57374]
[1724529492109,1.87716902,2798.5,2798.2,4.69187308]
[1724529492265,1.87716902,2798.5,2798.1,7.14752]
[1724529492698,1.87716902,2798.4,2798.1,7.14752]
[1724529493339,1.87716902,2798.4,2798.1,3.57374]
[1724529496620,1.87778281,2798.4,2798.1,3.57374]
[1724529499728,1.87778281,2798.4,2798.1,7.14751]
[1724529499931,1.87778281,2798.4,2798.1,3.57374]
[1724529501329,1.87777184,2798.4,2798.1,3.57374]
[1724529502015,6.04049,2798.7,2798.1,3.57374]
[1724529502220,0.961346,2798.6,2798.1,3.57374]
[1724529502387,6.04049,2798.7,2798.1,3.57374]
[1724529503096,1.87776638,2798.4,2798.1,3.57374]
[1724529504027,6.04049,2798.7,2798.2,0.55909339]
[1724529504320,6.04049,2798.7,2798.3,0.55909339]
[1724529504522,6.04049,2798.7,2798.4,0.55909339]
[1724529504696,7.15605736,2798.7,2798.5,0.55909339]
[1724529504893,7.15605736,2798.7,2798.6,0.55909339]
[1724529505109,7.71630302,2798.7,2798.6,0.55909339]
[1724529505982,7.71630302,2798.7,2798.1,3.57374]
[1724529506199,7.71630302,2798.7,2798.2,0.55909593]
[1724529506527,7.71630302,2798.7,2798.3,0.55909593]
[1724529506725,7.71630302,2798.7,2798.4,0.55909593]
[1724529506943,7.71630302,2798.7,2798.5,0.55909593]
[1724529507250,7.71630302,2798.7,2798.6,0.55909593]
[1724529508002,9.96952645,2798.7,2798.6,0.55909593]
[1724529509249,9.96952645,2798.7,2798.1,7.14751]
[1724529509454,8.85395909,2798.7,2798.1,7.14751]
[1724529509601,8.85395909,2798.7,2798.2,0.89370483]
[1724529509801,8.85395909,2798.7,2798.1,3.57374]
[1724529509802,1.87767675,2798.4,2798.1,3.57374]
[1724529510545,1.87767675,2798.5,2798.2,0.33461326]
[1724529510838,1.87767675,2798.5,2798.1,3.57374]
[1724529511138,1.87767675,2798.5,2798.2,0.3346025]
[1724529511347,1.87767675,2798.5,2798.1,4.537478]
[1724529511529,1.87767675,2798.5,2798.2,0.33458167]
[1724529511731,1.87767675,2798.5,2798.1,4.537478]
[1724529511924,1.87767675,2798.5,2798.2,0.33457334]
[1724529512129,1.87767675,2798.5,2798.1,8.111258]
[1724529512336,1.87767675,2798.5,2798.2,0.33457086]
[1724529512519,1.87767675,2798.5,2798.1,8.111258]
[1724529512722,1.87767675,2798.5,2798.2,0.33457078]
[1724529512925,1.87767675,2798.5,2798.1,8.111258]
[1724529513109,1.87767675,2798.5,2798.2,0.33457144]
[1724529513325,1.87767675,2798.5,2798.1,8.111258]
[1724529513532,1.87767675,2798.5,2798.2,0.33457138]
[1724529513844,1.87767675,2798.5,2798.1,8.111258]
[1724529514050,1.87767675,2798.5,2798.2,0.33456659]
[1724529514343,1.87767675,2798.5,2798.1,4.537478]
[1724529514545,1.87767675,2798.5,2798.2,3.90826949]
[1724529514751,1.87767675,2798.5,2798.2,3.5737]
[1724529515737,8.85395909,2798.7,2798.2,3.5737]
[1724529515738,1.87767675,2798.4,2798.2,3.5737]
[1724529517672,2.3188,2798.3,2797.9,3.5741]
[1724529517812,4.19647675,2798.3,2798.0,0.33457954]
[1724529518010,4.19647675,2798.3,2797.9,3.5741]
[1724529518212,4.19643866,2798.3,2798.0,0.3345729]
[1724529518407,4.19646097,2798.3,2797.9,3.5741]
[1724529518648,4.19646097,2798.3,2798.0,0.33460133]
[1724529518848,4.19646097,2798.3,2797.9,7.14805]
[1724529519269,4.19646097,2798.3,2797.9,3.57402]
[1724529519568,4.19646097,2798.3,2797.9,7.14806]
[1724529519714,3.57413,2797.9,2797.6,7.31]
[1724529519912,2.3188,2797.8,2797.5,19.7]
[1724529520163,4.19663341,2797.8,2797.3,3.57478]
[1724529520324,5.89306,2797.8,2797.4,0.33478181]
[1724529520533,5.89306,2797.8,2797.3,3.57478]
[1724529520861,5.89306,2797.8,2797.3,5.020764]
[1724529521152,2.3188,2797.8,2797.4,0.33478619]
[1724529521339,2.3188,2797.8,2797.3,5.020764]
[1724529522900,4.19663341,2798.0,2797.5,3.57459]
[1724529523071,4.19407086,2798.0,2797.5,3.57459]
[1724529523274,7.76805086,2798.0,2797.5,3.57459]
[1724529524620,5.89278,2798.0,2797.5,3.57459]
[1724529524823,5.89278,2798.0,2797.3,10.13773764]
[1724529525121,7.76805086,2798.0,2797.4,1.24703376]
[1724529525493,5.89278,2798.0,2797.4,4.82177376]
[1724529526852,7.43499364,2798.0,2797.4,4.82177376]
[1724529527143,3.57412,2797.9,2797.3,5.020744]
[1724529529291,2.3188,2797.7,2797.3,5.020744]
[1724529531354,2.3188,2797.7,2797.2,3.575]
[1724529532419,5.89317,2797.7,2797.1,10.88509]
[1724529533534,5.89317,2797.7,2797.1,14.46014]
[1724529534358,5.89317,2797.7,2797.2,3.57497]
[1724529534706,2.3188,2797.7,2797.2,3.57497]
[1724529534934,2.3188,2797.7,2797.2,6.6933876]
[1724529536353,5.84406,2797.9,2797.3,3.57485]
[1724529537162,5.84406,2797.9,2797.4,3.57473]
[1724529537356,2.2699,2797.9,2797.5,3.57461]
[1724529537559,5.84381,2798.1,2797.5,3.57461]
[1724529538404,5.84381,2798.1,2797.5,3.57453]
[1724529538547,5.84381,2798.1,2797.6,3.57447]
[1724529540188,1.54221364,2798.2,2797.7,3.57436]
[1724529540587,7.71562981,2798.3,2797.7,9.62842]
[1724529540812,7.71562981,2798.3,2797.7,6.05406]
[1724529540964,5.84355,2798.3,2797.7,6.05406]
[1724529541164,5.84355,2798.3,2797.8,3.5742]
[1724529541707,9.41723,2798.3,2797.6,4.4276728]
[1724529544198,3.57375,2798.2,2797.6,4.4276728]
[1724529547978,3.57375,2798.2,2797.6,0.8532928]
[1724529548311,3.57386,2798.1,2797.6,0.8532928]
[1724529548693,7.14782,2798.1,2797.6,0.8532928]
[1724529549011,7.14782,2798.1,2797.5,6.05424]
[1724529549363,3.574,2798.0,2797.5,6.05424]
[1724529549698,5.8439,2798.0,2797.5,3.57454]
[1724529551202,5.8439,2798.0,2797.4,3.57474]
[1724529551391,3.57411,2797.9,2797.3,6.0545]
[1724529551589,3.57411,2797.9,2797.4,1.46729176]
[1724529552618,3.57425,2797.8,2797.4,0.91729176]
[1724529553398,3.57436,2797.7,2797.4,0.91729176]
[1724529553882,7.14831,2797.9,2797.4,0.91729176]
[1724529554079,3.57425,2797.8,2797.4,0.91729176]
[1724529560501,3.57411,2797.9,2797.4,0.91729176]
[1724529561582,5.44894151,2797.9,2797.4,0.91729176]
[1724529562327,3.57411,2797.9,2797.4,0.91729176]
[1724529562496,5.44894151,2797.9,2797.5,0.80669418]
[1724529563335,5.44894151,2797.9,2797.3,7.14957]
[1724529563503,5.44894151,2797.9,2797.3,3.57478]
[1724529563888,5.44894151,2797.9,2797.4,2.313]
[1724529564085,3.57411,2797.9,2797.4,5.88771]
[1724529564629,5.44894151,2797.9,2797.4,5.88771]
[1724529564829,5.44894151,2797.9,2797.5,0.946249]
[1724529565287,5.45069745,2797.9,2797.5,0.946249]
[1724529567040,1.87658745,2797.9,2797.5,0.946249]
[1724529568082,1.87702655,2797.9,2797.5,0.946249]
[1724529570187,1.87701048,2797.9,2797.5,0.946249]
[1724529571598,1.87701048,2797.9,2797.4,5.88771]
[1724529571800,1.87701048,2797.9,2797.5,1.11844293]
[1724529572105,1.87701048,2797.9,2797.4,5.88771]
[1724529572293,1.87701048,2797.9,2797.5,1.11844335]
[1724529572597,1.87701048,2797.9,2797.4,5.88771]
[1724529572740,1.87701048,2797.9,2797.4,7.19938658]
[1724529573494,1.87701048,2797.9,2797.5,1.11845063]
[1724529573697,1.87701048,2797.9,2797.4,5.88771]
[1724529574394,1.87701048,2797.8,2797.4,5.88771]
[1724529574823,1.87701048,2797.8,2797.4,5.80723]
[1724529575110,1.87706045,2797.9,2797.4,5.80723]
[1724529575287,1.87706045,2797.8,2797.4,5.80723]
[1724529575662,1.87706045,2797.9,2797.4,5.80723]
[1724529576079,1.87706045,2797.8,2797.4,5.80723]
[1724529579488,1.87706045,2797.8,2797.4,2.23252]
[1724529580107,1.87723272,2797.8,2797.4,2.23252]
[1724529589442,1.87723272,2797.8,2797.4,5.80723]
[1724529589644,1.87744432,2797.8,2797.4,5.80723]
[1724529591458,1.87744432,2797.7,2797.4,5.80723]
[1724529591826,1.87744432,2797.7,2797.4,2.23252]
[1724529592455,1.87744432,2797.7,2797.3,3.57477]
[1724529592658,3.02720175,2797.7,2797.4,0.33504628]
[1724529592818,3.02720175,2797.7,2797.3,3.57477]
[1724529593013,6.60163175,2797.7,2797.1,14.40535824]
[1724529593256,1.54221364,2797.6,2797.1,13.31085]
[1724529593472,3.95641364,2797.6,2797.2,0.33512007]
[1724529593642,3.95641364,2797.6,2797.3,0.33512007]
[1724529593843,7.13211176,2797.6,2797.1,13.84706196]
[1724529594155,7.13211176,2797.6,2797.2,0.33515772]
[1724529594358,7.13274714,2797.6,2797.3,0.33515772]
[1724529594557,7.13274714,2797.6,2797.1,13.84708904]
[1724529594761,7.13274714,2797.6,2797.2,0.33516732]
[1724529594923,7.13274714,2797.6,2797.3,0.33516732]
[1724529595122,7.13274714,2797.6,2797.1,13.31083]
[1724529595322,5.83449334,2797.6,2797.2,0.33516376]
[1724529595667,5.83449334,2797.6,2797.3,0.33516376]
[1724529595817,5.83449334,2797.6,2797.1,17.42213202]
[1724529596017,5.83449334,2797.6,2797.2,0.33515903]
[1724529596245,5.83449334,2797.6,2797.3,0.33515903]
[1724529596449,5.83449334,2797.6,2797.2,3.57498]
[1724529596619,5.83449334,2797.6,2797.3,0.33512862]
[1724529596833,5.83449334,2797.6,2797.2,3.57498]
[1724529597147,5.83449334,2797.6,2797.1,13.31083]
[1724529597393,5.83449334,2797.6,2797.2,0.33511821]
[1724529597613,7.35818324,2797.6,2797.1,13.31083]
[1724529597925,7.35818324,2797.6,2797.2,0.33508884]
[1724529598068,7.35818324,2797.6,2797.1,13.31083]
[1724529598266,7.35818324,2797.6,2797.2,0.33510786]
[1724529598608,7.35818324,2797.6,2797.1,13.31083]
[1724529598793,7.35818324,2797.6,2797.2,0.33513493]
[1724529598999,7.35818324,2797.6,2797.1,16.88586]
[1724529599181,5.83449334,2797.6,2797.2,0.33513543]
[1724529599379,5.83425254,2797.6,2797.1,16.88586]
[1724529599575,5.83425254,2797.6,2797.2,3.57499]
[1724529599781,5.83425254,2797.6,2797.2,3.91014296]
[1724529599991,4.2920389,2797.6,2797.2,3.57499]
[1724529601219,1.8778389,2797.6,2797.3,3.57484]
[1724529601371,5.98845,2797.8,2797.4,2.4258]
[1724529601372,1.8778389,2797.7,2797.4,2.4258]
[1724529601568,1.8778389,2797.8,2797.5,3.57459]
[1724529602617,1.87752679,2797.9,2797.6,3.57446]
[1724529602913,2.43786018,2798.0,2797.6,3.57446]
[1724529603116,2.43786018,2798.0,2797.7,3.57424]
[1724529603414,0.37532339,2798.0,2797.7,3.57424]
[1724529603621,1.87752679,2798.1,2797.7,3.57424]
[1724529603919,1.87752679,2798.1,2797.8,2.4258]
[1724529604216,1.69251679,2798.1,2797.8,2.4258]
[1724529604414,1.69251679,2798.1,2797.9,3.57406]
[1724529604767,4.66723215,2798.7,2798.2,3.57372]
[1724529604971,9.57589273,2798.7,2798.0,3.57387]
[1724529605277,3.57324,2798.6,2798.0,7.14777]
[1724529605472,3.57324,2798.6,2798.1,2.4258]
[1724529605999,1.54221364,2798.8,2798.2,3.57364]
[1724529606000,5.11517364,2798.8,2798.2,3.57364]
[1724529606328,5.82578215,2799.0,2798.1,2.4258]
[1724529606329,3.57275,2799.0,2798.4,7.14676]
[1724529606486,3.57273,2799.0,2798.4,3.57337]
[1724529606688,4.90819558,2799.0,2798.2,5.99943]
[1724529606931,3.57296,2798.8,2798.2,5.99943]
[1724529607297,3.57296,2798.8,2798.2,2.4258]
[1724529607298,5.98739,2798.7,2798.2,2.4258]
[1724529607633,5.98738,2798.7,2798.2,2.4258]
[1724529608197,5.98738,2798.7,2798.1,5.99955]
[1724529608536,6.74033936,2798.7,2798.1,5.99955]
[1724529608735,6.74033936,2798.7,2797.9,12.42625364]
[1724529608736,4.709373,2798.7,2797.9,13.30984]
[1724529608914,3.57347,2798.4,2797.9,10.88404]
[1724529609116,3.57379,2798.2,2797.8,19.7]
[1724529609319,5.11619364,2798.1,2797.8,19.7]
[1724529609634,5.11619364,2798.1,2797.7,0.74922405]
[1724529610446,1.54221364,2798.1,2797.7,0.74922405]
[1724529611453,5.11614364,2798.1,2797.7,0.74922405]
[1724529611757,4.44309336,2798.0,2797.7,0.74922405]
[1724529611909,2.4377,2797.9,2797.7,0.74922405]
[1724529612103,6.01181,2797.9,2797.6,7.31]
[1724529613722,2.4377,2797.9,2797.6,7.31]
[1724529613930,3.13615548,2797.9,2797.6,7.31]
[1724529614741,6.71026548,2797.9,2797.6,7.31]
[1724529615053,6.71026548,2797.9,2797.3,23.27483]
[1724529618432,8.25247912,2797.9,2797.3,23.27478]
[1724529620960,8.25247912,2797.9,2797.3,3.57478]
[1724529621760,3.57436,2797.7,2797.1,33.58508]
[1724529621965,2.3034,2797.6,2797.2,0.89480871]
[1724529622162,2.3034,2797.6,2797.3,0.89480871]
[1724529622370,2.3034,2797.6,2797.2,3.57499]
[1724529622822,5.87772,2797.8,2797.2,3.57499]
[1724529625427,5.87772,2797.8,2797.3,3.57484]
[1724529626580,6.89273655,2797.8,2797.3,3.57484]
[1724529627649,2.3034,2797.7,2797.2,3.575]
[1724529628523,2.3034,2797.7,2797.3,3.57485]
[1724529628725,3.57432,2797.8,2797.3,6.00145]
[1724529629356,3.57432,2797.8,2797.3,3.57485]
[1724529629929,3.57432,2797.8,2797.4,0.5592541]
[1724529630129,3.57432,2797.8,2797.3,3.57485]
[1724529630130,4.86109728,2797.8,2797.5,0.5592541]
[1724529630356,4.86109728,2797.8,2797.3,3.57485]
[1724529630763,4.86109728,2797.8,2797.4,0.55925247]
[1724529631047,4.86109728,2797.8,2797.3,3.57485]
[1724529631048,4.86109728,2797.8,2797.5,0.55925247]
[1724529631249,4.86109728,2797.8,2797.3,3.57485]
[1724529631445,3.84561364,2797.9,2797.4,0.55924777]
[1724529631686,2.3034,2797.9,2797.5,0.55924777]
[1724529631891,3.57404,2798.0,2797.6,0.55924777]
[1724529632051,3.57404,2798.0,2797.4,2.339]
[1724529632253,3.57404,2798.0,2797.5,0.55923887]
[1724529632490,4.92686302,2798.0,2797.6,0.55923887]
[1724529632674,4.92686302,2798.0,2797.5,3.57459]
[1724529632998,6.80041559,2798.0,2797.5,3.57459]
[1724529634687,6.80041559,2798.0,2797.4,2.339]
[1724529634896,10.37446559,2798.0,2797.5,0.55925792]
[1724529635095,10.37446559,2798.0,2797.4,5.91374]
[1724529635391,10.37446559,2798.0,2797.5,0.55925749]
[1724529635590,8.50091302,2798.0,2797.4,5.91374]
[1724529635976,4.92686302,2798.0,2797.4,5.91374]
[1724529636153,8.50094302,2798.0,2797.4,5.91374]
[1724529636513,3.57418,2797.9,2797.4,2.339]
[1724529636788,3.57418,2797.9,2797.3,3.57476]
[1724529636997,2.4043,2797.8,2797.3,3.57476]
[1724529639206,5.97855,2797.8,2797.3,3.57476]
[1724529639513,3.57425,2797.8,2797.4,1.118485]
[1724529639797,3.57425,2797.8,2797.3,5.254643]
[1724529639997,3.57425,2797.8,2797.4,1.1184992]
[1724529640307,3.57425,2797.8,2797.3,5.254643]
[1724529640521,3.57425,2797.8,2797.4,1.11850013]
[1724529640667,3.57425,2797.8,2797.3,5.254643]
[1724529641014,3.57425,2797.8,2797.4,1.11851119]
[1724529641175,3.57425,2797.8,2797.3,3.57476]
[1724529641374,3.57425,2797.8,2797.4,1.11851139]
[1724529641578,3.57425,2797.8,2797.3,3.57476]
[1724529641776,2.4043,2797.7,2797.4,1.11851366]
[1724529642124,5.97867,2797.7,2797.1,10.88505]
[1724529642406,5.97867,2797.7,2797.1,14.38758575]
[1724529643260,5.97867,2797.7,2797.2,3.57499]
[1724529643660,2.4043,2797.4,2797.1,7.31]
[1724529647686,2.4043,2797.4,2797.0,23.27525]
[1724529648686,2.4043,2797.4,2797.0,19.7]
[1724529649209,5.97905,2797.4,2797.0,19.7]
[1724529649380,7.52126364,2797.4,2797.0,19.7]
[1724529650213,2.2958,2797.2,2797.0,19.7]
[1724529651215,3.57519,2797.1,2796.7,7.31]
[1724529651422,3.57519,2797.1,2796.5,0.55932668]
[1724529651423,7.15042,2797.1,2796.5,0.55932668]
[1724529651626,2.2958,2797.0,2796.5,3.57588]
[1724529651776,2.2958,2797.0,2796.5,4.27452176]
[1724529652722,2.2958,2797.0,2796.5,0.69864176]
[1724529652723,3.5754,2796.9,2796.5,0.69864176]
[1724529653175,2.2958,2797.0,2796.5,0.69864176]
[1724529653382,5.87107,2797.0,2796.4,7.59936029]
[1724529653949,2.2958,2797.0,2796.5,3.57586]
[1724529654093,2.3377,2797.2,2796.7,3.57563]
[1724529654996,2.3377,2797.2,2796.6,3.57576]
[1724529654997,5.91275,2797.2,2796.6,3.57576]
[1724529656045,5.91275,2797.2,2796.6,3.57569]
[1724529656218,8.557954,2797.2,2796.6,3.57569]
[1724529657056,2.3377,2797.1,2796.6,3.57569]
[1724529657401,2.3377,2797.0,2796.4,7.59937387]
[1724529657602,2.3377,2797.0,2796.5,3.57589]
[1724529658535,2.3377,2796.9,2796.5,3.5758]
[1724529658758,2.3377,2796.9,2796.6,3.57571]
[1724529659599,2.3377,2797.1,2796.6,3.57569]
[1724529659799,2.3377,2797.1,2796.7,3.57563]
[1724529660400,2.3377,2797.3,2796.8,3.95871364]
[1724529660648,2.3377,2797.3,2796.9,0.75343436]
[1724529661001,2.3377,2797.3,2796.9,4.32879436]
[1724529661211,2.3377,2797.3,2796.9,0.75343436]
[1724529661402,2.3377,2797.3,2796.8,5.992]
[1724529663111,5.91258,2797.3,2796.8,2.4165]
[1724529663469,5.91258,2797.3,2796.7,3.57554]
[1724529663754,3.57488,2797.3,2796.7,3.57554]
[1724529663957,3.57488,2797.3,2796.5,3.57583]
[1724529663958,2.4769,2797.1,2796.5,3.57583]
[1724529664257,3.57528,2797.0,2796.4,3.57602]
[1724529665406,7.15065,2797.0,2796.4,3.57602]
[1724529665962,3.57539,2796.9,2796.4,3.57602]